[Event "SVK Amateur-ch 2020"]
[Site "Topolcany"]
[Date "2020.07.10"]
[Round "2.30"]
[White "Pirvulescu, Adrian"]
[Black "Hasterok, Mateusz"]
[Result "0-1"]
[ECO "B23"]
[WhiteElo "1909"]
[BlackElo "2056"]
[Annotator "ChessBase"]
[PlyCount "118"]
[EventDate "2020.07.10"]
[EventType "swiss"]
[EventCountry "SVK"]
[SourceTitle "playchess.com"]
[Source "ChessBase"]
[SourceQuality "1"]
[TimeControl "3600+30"]

1. e4 {[%emt 0:00:00]} c5 {[%emt 0:00:00]} 2. Nc3 {[%emt 0:00:00]} Nc6 {[%emt 0:00:00]} 3. f4 {[%emt 0:00:00]} g6 {[%emt 0:00:00]} 4. Nf3 {[%emt 0:00:00]} Bg7 {[%emt 0:00:01]} 5. Bb5 {[%emt 0:00:01]} Nd4 {[%emt 0:00:37]} 6. O-O {[%emt 0:00:05]} e6 {[%emt 0:02:02]} 7. d3 {[%emt 0:00:05]} Ne7 {[%emt 0:02:02]} 8. Nxd4 {[%emt 0:00:03]} cxd4 {[%emt 0:02:16]} 9. Ne2 {[%emt 0:00:03]} O-O {[%emt 0:01:39]} 10. Ba4 {[%emt 0:00:03]} a6 {[%emt 0:05:27]} 11. Qe1 {[%emt 0:01:48]} b5 {[%emt 0:10:00]} 12. Bb3 {[%emt 0:00:02]} Nc6 {[%emt 0:01:26]} 13. Bd2 {[%emt 0:07:30]} f5 {[%emt 0:10:55]} 14. e5 {[%emt 0:12:23]} d6 {[%emt 0:00:46]} 15. a4 {[%emt 0:00:31]} b4 {[%emt 0:06:03]} 16. Bxb4 {[%emt 0:05:45]} Nxb4 {[%emt 0:00:08]} 17. Qxb4 {[%emt 0:00:05]} dxe5 {[%emt 0:00:12]} 18. fxe5 {[%emt 0:00:14]} Bxe5 {[%emt 0:00:42]} 19. Nf4 {[%emt 0:03:12]} Re8 {[%emt 0:05:49]} 20. Rae1 {[%emt 0:11:31]} Qc7 {[%emt 0:01:43]} 21. g3 {[%emt 0:03:40]} Kg7 {[%emt 0:04:26]} 22. Re2 {[%emt 0:01:20]} Rb8 {[%emt 0:03:19]} 23. Qe1 {[%emt 0:00:46]} Bxf4 {[%emt 0:00:26]} 24. gxf4 {[%emt 0:18:12]} Qc6 {[%emt 0:01:01]} 25. Qg3 {[%emt 0:00:13]} e5 {[%emt 0:05:01]} 26. fxe5 {[%emt 0:01:22]} Bb7 {[%emt 0:01:00]} 27. e6 {[%emt 0:02:52]} Qh1+ {[%emt 0:03:51]} 28. Kf2 {[%emt 0:00:01]} f4 {[%emt 0:00:14]} 29. Qh3 {[%emt 0:02:04]} Qc6 {[%emt 0:00:05]} 30. Ke1 {[%emt 0:00:36]} Qd6 {[%emt 0:00:21]} 31. Qg4 {[%emt 0:00:32]} f3 {[%emt 0:00:34]} 32. Ref2 {[%emt 0:00:29]} Bc6 {[%emt 0:01:48]} 33. Qg3 {[%emt 0:00:14]} Qb4+ {[%emt 0:01:58]} 34. Kd1 {[%emt 0:00:09]} Qc5 {[%emt 0:00:16]} 35. Qc7+ {[%emt 0:00:09]} Kh8 {[%emt 0:00:37]} 36. Re1 {[%emt 0:00:57]} Rb7 {[%emt 0:00:41]} 37. Qe5+ {[%emt 0:00:32]} Qxe5 {[%emt 0:00:01]} 38. Rxe5 {[%emt 0:00:00]} Rg7 {[%emt 0:00:23]} 39. Rc5 {[%emt 0:00:19]} Bb7 {[%emt 0:00:22]} 40. a5 {[%emt 0:01:02]} g5 {[%emt 0:00:33]} 41. Bd5 {[%emt 0:00:51]} g4 {[%emt 0:00:35]} 42. Bxb7 {[%emt 0:00:45]} Rxb7 {[%emt 0:00:01]} 43. Rg5 {[%emt 0:00:32]} Rg7 {[%emt 0:00:15]} 44. Rd5 {[%emt 0:00:29]} Rxe6 {[%emt 0:00:30]} 45. Rxd4 {[%emt 0:00:20]} h5 {[%emt 0:00:19]} 46. Rd5 {[%emt 0:00:31]} Rh6 {[%emt 0:00:16]} 47. Rf5 {[%emt 0:00:39]} h4 {[%emt 0:00:42]} 48. Rf1 {[%emt 0:00:32]} Kh7 {[%emt 0:01:08]} 49. Kd2 {[%emt 0:00:29]} Kg6 {[%emt 0:00:28]} 50. Rf4 {[%emt 0:00:30]} Kg5 {[%emt 0:00:14]} 51. Rf8 {[%emt 0:00:05]} Re6 {[%emt 0:00:30]} 52. Re1 {[%emt 0:00:52]} Rf6 {[%emt 0:01:13]} 53. Rxf6 {[%emt 0:00:33]} Kxf6 {[%emt 0:00:01]} 54. Rf1 {[%emt 0:00:30]} Kf5 {[%emt 0:00:12]} 55. Ke3 {[%emt 0:00:09]} Re7+ {[%emt 0:00:10]} 56. Kd4 {[%emt 0:00:13]} Kf4 {[%emt 0:00:12]} 57. c4 {[%emt 0:01:06]} g3 {[%emt 0:00:05]} 58. b4 {[%emt 0:00:22]} g2 {[%emt 0:00:07]} 59. b5 {[%emt 0:00:39]} gxf1=Q {[%emt 0:00:09]} 0-1

[Event "SVK Amateur-ch 2020"]
[Site "Topolcany"]
[Date "2020.07.10"]
[Round "2.31"]
[White "Blaho, Stefan"]
[Black "Gyurika, Tamas"]
[Result "1-0"]
[ECO "D00"]
[WhiteElo "2050"]
[BlackElo "1851"]
[Annotator "ChessBase"]
[PlyCount "43"]
[EventDate "2020.07.10"]
[EventType "swiss"]
[EventCountry "SVK"]
[SourceTitle "playchess.com"]
[Source "ChessBase"]
[SourceQuality "1"]
[TimeControl "3600+30"]

1. d4 {[%emt 0:00:00]} d5 {[%emt 0:00:00]} 2. Bf4 {[%emt 0:00:00]} e6 {[%emt 0:00:24]} 3. e3 {[%emt 0:00:00]} Nf6 {[%emt 0:00:12]} 4. Nd2 {[%emt 0:01:37]} c5 {[%emt 0:00:58]} 5. c3 {[%emt 0:00:04]} Nc6 {[%emt 0:00:46]} 6. Ngf3 {[%emt 0:00:16]} Be7 {[%emt 0:03:40]} 7. Bd3 {[%emt 0:00:28]} O-O {[%emt 0:00:52]} 8. Ne5 {[%emt 0:00:37]} Qb6 {[%emt 0:03:59]} 9. Rb1 {[%emt 0:00:34]} cxd4 {[%emt 0:03:18]} 10. exd4 {[%emt 0:00:02]} Bd6 {[%emt 0:00:52]} 11. Qe2 {[%emt 0:17:01]} Qc7 {[%emt 0:03:22]} 12. Bg3 {[%emt 0:00:17]} Nd7 {[%emt 0:01:38]} 13. f4 {[%emt 0:17:12]} Ne7 {[%emt 0:03:17]} 14. O-O {[%emt 0:01:33]} f6 {[%emt 0:01:19]} 15. Qh5 {[%emt 0:03:23]} g6 {[%emt 0:02:09]} 16. Nxg6 {[%emt 0:00:53]} hxg6 {[%emt 0:00:27]} 17. Bxg6 {[%emt 0:00:01]} Nxg6 {[%emt 0:00:09]} 18. Qxg6+ {[%emt 0:00:07]} Kh8 {[%emt 0:00:05]} 19. Qh6+ {[%emt 0:11:58]} Kg8 {[%emt 0:00:07]} 20. Qg6+ {[%emt 0:00:03]} Kh8 {[%emt 0:00:06]} 21. Rf3 {[%emt 0:01:45]} Nb6 {[%emt 0:01:23]} 22. f5 {[%emt 0:01:07]} 1-0

[Event "SVK Amateur-ch 2020"]
[Site "Topolcany"]
[Date "2020.07.11"]
[Round "3.1"]
[White "Bojda, Lubomir"]
[Black "Miciak, Emanuel"]
[Result "1-0"]
[ECO "D13"]
[WhiteElo "2110"]
[BlackElo "1839"]
[Annotator "ChessBase"]
[PlyCount "55"]
[EventDate "2020.07.10"]
[EventType "swiss"]
[EventCountry "SVK"]
[SourceTitle "playchess.com"]
[Source "ChessBase"]
[SourceQuality "1"]
[TimeControl "3600+30"]

1. Nf3 {[%emt 0:00:00]} Nf6 {[%emt 0:00:00]} 2. c4 {[%emt 0:00:00]} c6 {[%emt 0:00:00]} 3. d4 {[%emt 0:00:48]} d5 {[%emt 0:00:06]} 4. Nc3 {[%emt 0:00:05]} Bf5 {[%emt 0:00:22]} 5. cxd5 {[%emt 0:01:03]} cxd5 {[%emt 0:00:10]} 6. Qb3 {[%emt 0:00:06]} b6 {[%emt 0:03:45]} 7. Bf4 {[%emt 0:03:11]} a6 {[%emt 0:04:10]} 8. Rc1 {[%emt 0:01:16]} e6 {[%emt 0:02:21]} 9. Na4 {[%emt 0:05:04]} Nbd7 {[%emt 0:02:38]} 10. e3 {[%emt 0:06:30]} Rc8 {[%emt 0:04:07]} 11. Nc3 {[%emt 0:01:35]} b5 {[%emt 0:01:46]} 12. a3 {[%emt 0:00:05]} Be7 {[%emt 0:01:33]} 13. Be2 {[%emt 0:00:03]} Ne4 {[%emt 0:01:05]} 14. O-O {[%emt 0:02:00]} Nxc3 {[%emt 0:00:19]} 15. Rxc3 {[%emt 0:00:15]} Rxc3 {[%emt 0:00:22]} 16. Qxc3 {[%emt 0:00:10]} O-O {[%emt 0:02:01]} 17. Rc1 {[%emt 0:00:28]} Nf6 {[%emt 0:00:35]} 18. Ne5 {[%emt 0:00:55]} Ne4 {[%emt 0:03:22]} 19. Qc6 {[%emt 0:00:56]} Qd6 {[%emt 0:03:38]} 20. Ng6 {[%emt 0:00:37]} Qd8 {[%emt 0:04:56]} 21. Nxe7+ {[%emt 0:00:48]} Qxe7 {[%emt 0:00:08]} 22. f3 {[%emt 0:00:05]} e5 {[%emt 0:02:56]} 23. Bxe5 {[%emt 0:05:16]} Nf6 {[%emt 0:03:57]} 24. Qxa6 {[%emt 0:00:24]} Nd7 {[%emt 0:02:01]} 25. Qd6 {[%emt 0:01:10]} Qh4 {[%emt 0:03:21]} 26. Qxd5 {[%emt 0:02:00]} Re8 {[%emt 0:02:37]} 27. Bxb5 {[%emt 0:01:11]} Nxe5 {[%emt 0:00:58]} 28. Bxe8 {[%emt 0:00:51]} 1-0

[Event "SVK Amateur-ch 2020"]
[Site "Topolcany"]
[Date "2020.07.11"]
[Round "3.2"]
[White "Kovarikova, Maria"]
[Black "Pniaczek Marek"]
[Result "0-1"]
[ECO "C44"]
[WhiteElo "1844"]
[BlackElo "2102"]
[Annotator "ChessBase"]
[PlyCount "53"]
[EventDate "2020.07.10"]
[EventType "swiss"]
[EventCountry "SVK"]
[SourceTitle "playchess.com"]
[Source "ChessBase"]
[SourceQuality "1"]
[TimeControl "3600+30"]

1. e4 {[%emt 0:00:00]} e5 {[%emt 0:00:00]} 2. Nf3 {[%emt 0:00:00]} Nc6 {[%emt 0:00:00]} 3. d4 {[%emt 0:00:00]} exd4 {[%emt 0:00:00]} 4. c3 {[%emt 0:00:03]} Nf6 {[%emt 0:00:00]} 5. e5 {[%emt 0:00:11]} Nd5 {[%emt 0:00:00]} 6. cxd4 {[%emt 0:00:11]} Bb4+ {[%emt 0:00:00]} 7. Bd2 {[%emt 0:00:09]} Bxd2+ {[%emt 0:00:11]} 8. Qxd2 {[%emt 0:00:05]} d6 {[%emt 0:00:12]} 9. Nc3 {[%emt 0:02:21]} dxe5 {[%emt 0:00:20]} 10. Bb5 {[%emt 0:01:58]} O-O {[%emt 0:12:49]} 11. Bxc6 {[%emt 0:02:39]} bxc6 {[%emt 0:00:18]} 12. O-O {[%emt 0:00:31]} exd4 {[%emt 0:04:18]} 13. Nxd4 {[%emt 0:00:52]} Bb7 {[%emt 0:02:47]} 14. Na4 {[%emt 0:02:20]} Qd6 {[%emt 0:03:08]} 15. Rac1 {[%emt 0:06:15]} Nf4 {[%emt 0:02:22]} 16. Rfd1 {[%emt 0:13:04]} c5 {[%emt 0:06:46]} 17. Rxc5 {[%emt 0:01:04]} Rad8 {[%emt 0:05:16]} 18. Qc2 {[%emt 0:10:59]} Rfe8 {[%emt 0:01:29]} 19. Rc4 {[%emt 0:08:02]} Nxg2 {[%emt 0:00:55]} 20. Nc3 {[%emt 0:00:53]} c5 {[%emt 0:04:12]} 21. Nde2 {[%emt 0:09:32]} Qe6 {[%emt 0:01:55]} 22. b3 {[%emt 0:05:15]} Ne3 {[%emt 0:02:11]} 23. fxe3 {[%emt 0:01:28]} Qxe3+ {[%emt 0:00:04]} 24. Kf1 {[%emt 0:00:06]} Qf3+ {[%emt 0:00:05]} 25. Ke1 {[%emt 0:00:08]} Qh1+ {[%emt 0:00:03]} 26. Kf2 {[%emt 0:00:10]} Qg2+ {[%emt 0:00:03]} 27. Ke1 {[%emt 0:00:12]} 0-1

[Event "SVK Amateur-ch 2020"]
[Site "Topolcany"]
[Date "2020.07.11"]
[Round "3.3"]
[White "Iolis, Oleg"]
[Black "Stevik, Patrik ml."]
[Result "1/2-1/2"]
[ECO "B00"]
[WhiteElo "2166"]
[BlackElo "2047"]
[Annotator "ChessBase"]
[PlyCount "73"]
[EventDate "2020.07.10"]
[EventType "swiss"]
[EventCountry "SVK"]
[SourceTitle "playchess.com"]
[Source "ChessBase"]
[SourceQuality "1"]
[TimeControl "3600+30"]

1. e4 {[%emt 0:00:00]} b6 {[%emt 0:00:29]} 2. d4 {[%emt 0:00:59]} Bb7 {[%emt 0:00:09]} 3. Nc3 {[%emt 0:01:26]} e6 {[%emt 0:00:23]} 4. Nf3 {[%emt 0:02:47]} Nf6 {[%emt 0:01:07]} 5. Bd3 {[%emt 0:00:29]} Be7 {[%emt 0:01:05]} 6. O-O {[%emt 0:00:08]} d6 {[%emt 0:00:17]} 7. Re1 {[%emt 0:03:28]} Nbd7 {[%emt 0:00:18]} 8. e5 {[%emt 0:02:18]} dxe5 {[%emt 0:03:20]} 9. dxe5 {[%emt 0:00:40]} Nd5 {[%emt 0:00:18]} 10. Bd2 {[%emt 0:09:59]} c5 {[%emt 0:02:25]} 11. Qe2 {[%emt 0:04:17]} a6 {[%emt 0:02:05]} 12. Nxd5 {[%emt 0:00:58]} Bxd5 {[%emt 0:00:24]} 13. c4 {[%emt 0:02:01]} Bc6 {[%emt 0:01:31]} 14. Rad1 {[%emt 0:00:06]} Qc7 {[%emt 0:00:33]} 15. Bg5 {[%emt 0:04:20]} h6 {[%emt 0:06:40]} 16. Bxe7 Kxe7 {[%emt 0:00:01]} 17. Nd2 {[%emt 0:03:20]} g5 {[%emt 0:05:25]} 18. a3 {[%emt 0:02:38]} Rag8 {[%emt 0:02:55]} 19. b4 {[%emt 0:00:38]} g4 {[%emt 0:01:44]} 20. b5 {[%emt 0:02:51]} Ba8 {[%emt 0:02:55]} 21. bxa6 {[%emt 0:02:19]} h5 {[%emt 0:00:20]} 22. Qe3 {[%emt 0:03:24]} h4 {[%emt 0:01:32]} 23. Be4 {[%emt 0:00:05]} Qxe5 {[%emt 0:01:14]} 24. f4 {[%emt 0:04:02]} gxf3 {[%emt 0:01:55]} 25. Nxf3 {[%emt 0:00:05]} Qxe4 {[%emt 0:01:13]} 26. Rxd7+ {[%emt 0:02:32]} Kxd7 {[%emt 0:04:02]} 27. Qd2+ {[%emt 0:00:06]} Qd4+ {[%emt 0:00:45]} 28. Nxd4 {[%emt 0:00:07]} Rxg2+ {[%emt 0:00:08]} 29. Qxg2 {[%emt 0:00:34]} Bxg2 {[%emt 0:00:12]} 30. Nxe6 {[%emt 0:02:55]} fxe6 {[%emt 0:02:17]} 31. Kxg2 {[%emt 0:00:03]} Ra8 {[%emt 0:00:17]} 32. a4 {[%emt 0:04:38]} Rxa6 {[%emt 0:00:25]} 33. Ra1 {[%emt 0:00:03]} Ra8 {[%emt 0:04:26]} 34. Kh3 {[%emt 0:00:05]} Rh8 {[%emt 0:01:52]} 35. Rb1 {[%emt 0:01:51]} Kc6 {[%emt 0:00:26]} 36. Re1 {[%emt 0:00:04]} Kd6 {[%emt 0:01:20]} 37. Rb1 {[%emt 0:00:03]} 1/2-1/2

[Event "SVK Amateur-ch 2020"]
[Site "Topolcany"]
[Date "2020.07.11"]
[Round "3.3"]
[White "Alexandrova, Angelina"]
[Black "Kaniansky Miroslav"]
[Result "1/2-1/2"]
[ECO "D94"]
[WhiteElo "1839"]
[BlackElo "2100"]
[Annotator "ChessBase"]
[PlyCount "61"]
[EventDate "2020.07.10"]
[EventType "swiss"]
[EventCountry "SVK"]
[SourceTitle "playchess.com"]
[Source "ChessBase"]
[SourceQuality "1"]
[TimeControl "3600+30"]

1. Nf3 {[%emt 0:00:00]} d5 {[%emt 0:00:00]} 2. d4 {[%emt 0:00:00]} Nf6 {[%emt 0:00:28]} 3. c4 {[%emt 0:00:00]} c6 {[%emt 0:00:16]} 4. e3 {[%emt 0:00:09]} g6 {[%emt 0:01:00]} 5. Nc3 {[%emt 0:00:18]} Bg7 {[%emt 0:00:09]} 6. Be2 {[%emt 0:00:14]} O-O {[%emt 0:00:06]} 7. O-O {[%emt 0:00:06]} Nbd7 {[%emt 0:04:17]} 8. cxd5 {[%emt 0:00:16]} cxd5 {[%emt 0:00:06]} 9. Qb3 {[%emt 0:00:24]} e6 {[%emt 0:03:58]} 10. Bd2 {[%emt 0:01:00]} Ne4 {[%emt 0:05:40]} 11. Rad1 {[%emt 0:07:45]} Nxd2 {[%emt 0:02:19]} 12. Rxd2 {[%emt 0:03:16]} Qb6 {[%emt 0:03:38]} 13. Rc1 {[%emt 0:05:58]} Qxb3 {[%emt 0:08:28]} 14. axb3 {[%emt 0:00:06]} Nb6 {[%emt 0:00:03]} 15. Rdc2 {[%emt 0:08:19]} Bd7 {[%emt 0:05:45]} 16. Nb5 {[%emt 0:00:44]} Bxb5 {[%emt 0:04:37]} 17. Bxb5 {[%emt 0:00:07]} Rfc8 {[%emt 0:00:04]} 18. Rc7 {[%emt 0:07:35]} Bf8 {[%emt 0:01:01]} 19. g3 {[%emt 0:02:33]} Bd6 {[%emt 0:03:16]} 20. Rxc8+ {[%emt 0:00:10]} Rxc8 {[%emt 0:00:08]} 21. Rxc8+ {[%emt 0:00:08]} Nxc8 {[%emt 0:00:05]} 22. Kf1 {[%emt 0:03:54]} Kf8 {[%emt 0:00:06]} 23. Nd2 {[%emt 0:00:50]} Ke7 {[%emt 0:00:16]} 24. Ke2 {[%emt 0:00:23]} Bb4 {[%emt 0:01:09]} 25. f3 {[%emt 0:00:54]} a6 {[%emt 0:03:23]} 26. Bd3 {[%emt 0:00:13]} Na7 {[%emt 0:00:11]} 27. Nb1 {[%emt 0:02:34]} Nc6 {[%emt 0:01:08]} 28. Bc2 {[%emt 0:00:48]} Kd6 {[%emt 0:01:45]} 29. Kd3 {[%emt 0:00:18]} e5 {[%emt 0:04:02]} 30. dxe5+ {[%emt 0:01:42]} Nxe5+ {[%emt 0:00:27]} 31. Ke2 {[%emt 0:00:17]} 1/2-1/2

[Event "SVK Amateur-ch 2020"]
[Site "Topolcany"]
[Date "2020.07.11"]
[Round "3.4"]
[White "Varga, Marcell"]
[Black "Nadzamova, Viktoria"]
[Result "1-0"]
[ECO "E18"]
[WhiteElo "2150"]
[BlackElo "2046"]
[Annotator "RC"]
[PlyCount "119"]
[EventDate "2020.07.10"]
[EventType "swiss"]
[EventCountry "SVK"]
[SourceTitle "playchess.com"]
[Source "ChessBase"]
[SourceQuality "1"]
[TimeControl "3600+30"]

1. d4 {[%emt 0:00:00]} Nf6 {[%emt 0:00:00]} 2. c4 {[%emt 0:00:35]} e6 {[%emt 0:00:00]} 3. Nf3 {[%emt 0:01:00]} b6 {[%emt 0:00:12]} 4. Nc3 {[%emt 0:05:07]} Bb7 {[%emt 0:01:30]} 5. g3 {[%emt 0:01:36]} Be7 {[%emt 0:01:35]} 6. Bg2 {[%emt 0:00:16]} O-O {[%emt 0:00:53]} 7. O-O {[%emt 0:03:05]} d6 {[%emt 0:01:34]} 8. Re1 {[%emt 0:01:31]} Nbd7 {[%emt 0:05:10]} 9. e4 {[%emt 0:02:02]} e5 {[%emt 0:12:01]} 10. d5 {[%emt 0:09:35]} Ne8 {[%emt 0:05:11]} 11. Be3 {[%emt 0:03:06]} c5 {[%emt 0:02:18]} 12. Nd2 {[%emt 0:03:19]} Bg5 {[%emt 0:06:05]} 13. Nf1 {[%emt 0:06:36]} g6 {[%emt 0:04:42]} 14. Bh3 {[%emt 0:00:02]} Bc8 {[%emt 0:01:03]} 15. f4 {[%emt 0:03:41]} exf4 {[%emt 0:01:38]} 16. gxf4 {[%emt 0:00:11]} Bh4 {[%emt 0:01:09]} 17. Ng3 {[%emt 0:00:14]} Ndf6 {[%emt 0:02:12]} 18. Kg2 {[%emt 0:02:25]} Bxh3+ {[%emt 0:02:25]} 19. Kxh3 {[%emt 0:00:03]} Nh5 {[%emt 0:00:57]} 20. Qg4 {[%emt 0:04:15]} Bxg3 {[%emt 0:03:57]} 21. hxg3 {[%emt 0:00:16]} Nhf6 {[%emt 0:00:55]} 22. Qf3 {[%emt 0:01:47]} Qd7+ {[%emt 0:03:01]} 23. Kg2 {[%emt 0:00:11]} Ng4 {[%emt 0:00:14]} 24. Bd2 {[%emt 0:00:36]} Ng7 {[%emt 0:03:08]} 25. Nd1 {[%emt 0:01:18]} Rae8 {[%emt 0:01:11]} 26. Bc3 {[%emt 0:00:25]} f6 {[%emt 0:02:04]} 27. b3 {[%emt 0:03:10]} h5 {[%emt 0:01:29]} 28. a4 {[%emt 0:03:26]} a6 {[%emt 0:00:35]} 29. Ne3 {[%emt 0:01:16]} f5 {[%emt 0:02:12]} 30. Nxg4 {[%emt 0:05:26]} hxg4 {[%emt 0:00:15]} 31. Qd3 {[%emt 0:00:20]} fxe4 {[%emt 0:00:08]} 32. Rxe4 {[%emt 0:00:12]} Rxe4 {[%emt 0:00:09]} 33. Qxe4 {[%emt 0:00:06]} Qf5 {[%emt 0:00:16]} 34. Qxf5 {[%emt 0:02:35]} gxf5 {[%emt 0:00:14]} 35. Rh1 {[%emt 0:01:13]} Ne8 {[%emt 0:02:25]} 36. Rh8+ {[%emt 0:01:44]} Kf7 {[%emt 0:00:13]} 37. Rh7+ {[%emt 0:00:03]} Kg6 {[%emt 0:01:23]} 38. Rb7 {[%emt 0:00:41]} Nf6 {[%emt 0:01:04]} 39. Bxf6 {[%emt 0:00:27]} Kxf6 {[%emt 0:00:09]} 40. Rxb6 {[%emt 0:00:04]} Ke7 {[%emt 0:00:13]} 41. Rb7+ {[%emt 0:01:00]} Kd8 {[%emt 0:01:50]} 42. Ra7 {[%emt 0:00:18]} Re8 {[%emt 0:00:30]} 43. Rxa6 {[%emt 0:00:42]} Re2+ {[%emt 0:01:20]} 44. Kf1 {[%emt 0:00:14]} Re3 {[%emt 0:00:57]} 45. Rxd6+ {[%emt 0:00:15]} Kc7 {[%emt 0:00:32]} 46. Rc6+ {[%emt 0:00:17]} Kd7 {[%emt 0:00:23]} 47. Kf2 {[%emt 0:01:44]} Rf3+ {[%emt 0:00:23]} 48. Kg2 {[%emt 0:00:19]} Rxb3 {[%emt 0:00:05]} 49. Rxc5 {[%emt 0:00:21]} Rb2+ {[%emt 0:00:18]} 50. Kf1 {[%emt 0:00:12]} Rb3 {[%emt 0:01:04]} 51. Kf2 {[%emt 0:00:42]} Rb2+ {[%emt 0:00:15]} 52. Ke3 {[%emt 0:00:36]} Rb3+ {[%emt 0:00:26]} 53. Kd4 {[%emt 0:00:13]} Rxg3 {[%emt 0:00:10]} 54. Rc6 {[%emt 0:00:35]} Ke7 {[%emt 0:01:21]} 55. Ke5 {[%emt 0:00:52]} Rc3 {[%emt 0:01:21]} 56. Kxf5 {[%emt 0:00:35]} g3 {[%emt 0:00:42]} 57. Rg6 {[%emt 0:03:27]} Rxc4 {[%emt 0:00:24]} 58. Rxg3 {[%emt 0:00:08]} Kd6 {[%emt 0:00:02]} 59. Rg6+ {[%emt 0:01:16]} Kxd5 {[%emt 0:00:22]} 60. Ra6 {[%emt 0:00:09]} 1-0

[Event "SVK Amateur-ch 2020"]
[Site "Topolcany"]
[Date "2020.07.11"]
[Round "3.4"]
[White "Suder, Jakub"]
[Black "Pasztor, Ladislav"]
[Result "1-0"]
[ECO "E90"]
[WhiteElo "2095"]
[BlackElo "1802"]
[Annotator "ChessBase"]
[PlyCount "63"]
[EventDate "2020.07.10"]
[EventType "swiss"]
[EventCountry "SVK"]
[SourceTitle "playchess.com"]
[Source "ChessBase"]
[SourceQuality "1"]
[TimeControl "3600+30"]

1. d4 {[%emt 0:00:00]} Nf6 {[%emt 0:00:00]} 2. c4 {[%emt 0:00:00]} g6 {[%emt 0:00:02]} 3. Nc3 {[%emt 0:00:00]} Bg7 {[%emt 0:00:06]} 4. e4 {[%emt 0:00:00]} d6 {[%emt 0:00:12]} 5. Nf3 {[%emt 0:00:01]} c6 {[%emt 0:01:10]} 6. Be2 {[%emt 0:00:09]} Qc7 {[%emt 0:00:34]} 7. O-O {[%emt 0:00:25]} Bg4 {[%emt 0:01:03]} 8. Ne1 {[%emt 0:03:42]} Bxe2 {[%emt 0:02:42]} 9. Qxe2 {[%emt 0:00:02]} Nbd7 {[%emt 0:01:37]} 10. Be3 {[%emt 0:02:47]} O-O {[%emt 0:00:52]} 11. f4 {[%emt 0:02:06]} h5 {[%emt 0:02:38]} 12. h3 {[%emt 0:02:07]} a6 {[%emt 0:03:23]} 13. e5 {[%emt 0:02:50]} Nh7 {[%emt 0:01:58]} 14. Nf3 {[%emt 0:02:58]} b5 {[%emt 0:05:52]} 15. e6 {[%emt 0:06:15]} fxe6 {[%emt 0:05:23]} 16. Nh4 {[%emt 0:05:14]} Rf6 {[%emt 0:03:22]} 17. Ne4 {[%emt 0:01:10]} Nhf8 {[%emt 0:03:12]} 18. Nxf6+ {[%emt 0:00:41]} exf6 {[%emt 0:00:55]} 19. g4 {[%emt 0:02:26]} hxg4 {[%emt 0:06:05]} 20. hxg4 {[%emt 0:00:09]} Kf7 {[%emt 0:06:12]} 21. Rae1 {[%emt 0:02:25]} bxc4 {[%emt 0:03:15]} 22. f5 {[%emt 0:02:07]} exf5 {[%emt 0:03:51]} 23. gxf5 {[%emt 0:01:01]} d5 {[%emt 0:02:38]} 24. Bf4 {[%emt 0:00:19]} Qb6 {[%emt 0:00:48]} 25. fxg6+ {[%emt 0:00:35]} Kg8 {[%emt 0:00:52]} 26. Nf5 {[%emt 0:00:07]} Nxg6 {[%emt 0:02:04]} 27. Qe6+ {[%emt 0:00:20]} Kh7 {[%emt 0:02:29]} 28. Qxd7 {[%emt 0:00:39]} Rg8 {[%emt 0:00:20]} 29. Re2 {[%emt 0:00:30]} Nxf4 {[%emt 0:00:30]} 30. Rxf4 {[%emt 0:00:13]} Kh8 {[%emt 0:01:24]} 31. Kh1 {[%emt 0:00:43]} Qd8 {[%emt 0:02:04]} 32. Rh2+ {[%emt 0:00:07]} 1-0